[Event "Titled Tuesday Blitz April 25 Early 2023"]
[White "Paravyan, David"]
[Black "Papasimakopoulos, Alexandros"]
[WhiteFideId "4194985"]
[BlackFideId "4244125"]
[WhiteElo "2563"]
[BlackElo "2359"]
[Result "1-0"]
[Round "03"]
[TimeControl "180+2"]
[Date "2023.04.25"]
[WhiteClock "0:00:46"]
[BlackClock "0:01:27"]

1. e4 {[%clk 0:03:00]}  e6 {[%clk 0:02:59]} 2. d4 {[%clk 0:03:00]}  d5 {[%clk 0:03:00]} 3. Nd2 {[%clk 0:02:59]}  Nf6 {[%clk 0:02:59]} 4. e5 {[%clk 0:02:58]}  Nfd7 {[%clk 0:03:00]} 5. Ngf3 {[%clk 0:02:57]}  c5 {[%clk 0:03:01]} 6. c3 {[%clk 0:02:57]}  Nc6 {[%clk 0:02:55]} 7. Bd3 {[%clk 0:02:58]}  a5 {[%clk 0:02:55]} 8. O-O {[%clk 0:02:58]}  Be7 {[%clk 0:02:55]} 9. Re1 {[%clk 0:02:57]}  cxd4 {[%clk 0:02:55]} 10. cxd4 {[%clk 0:02:57]}  g5 {[%clk 0:02:56]} 11. h3 {[%clk 0:02:55]}  h5 {[%clk 0:02:56]} 12. Nf1 {[%clk 0:02:46]}  g4 {[%clk 0:02:55]} 13. hxg4 {[%clk 0:02:47]}  hxg4 {[%clk 0:02:56]} 14. N3h2 {[%clk 0:02:47]}  Bb4 {[%clk 0:02:52]} 15. Re3 {[%clk 0:02:40]}  Qh4 {[%clk 0:02:52]} 16. Rg3 {[%clk 0:02:32]}  f5 {[%clk 0:02:52]} 17. exf6 {[%clk 0:02:10]}  Bd6 {[%clk 0:02:52]} 18. Qxg4 {[%clk 0:01:45]}  Bxg3 {[%clk 0:02:46]} 19. Qg6+ {[%clk 0:01:45]}  Kd8 {[%clk 0:02:42]} 20. Qxg3 {[%clk 0:01:36]}  Qxg3 {[%clk 0:02:39]} 21. Nxg3 {[%clk 0:01:37]}  Rf8 {[%clk 0:02:34]} 22. Ng4 {[%clk 0:01:29]}  e5 {[%clk 0:02:14]} 23. Bh6 {[%clk 0:01:21]}  Nxf6 {[%clk 0:02:04]} 24. Nxf6 {[%clk 0:01:16]}  Rxf6 {[%clk 0:02:00]} 25. Bg5 {[%clk 0:01:16]}  Ke7 {[%clk 0:02:00]} 26. Nh5 {[%clk 0:01:11]}  Nxd4 {[%clk 0:02:00]} 27. Bxf6+ {[%clk 0:01:11]}  Kd6 {[%clk 0:01:58]} 28. f4 {[%clk 0:01:08]}  Nc6 {[%clk 0:01:58]} 29. fxe5+ {[%clk 0:01:07]}  Nxe5 {[%clk 0:01:59]} 30. Bxe5+ {[%clk 0:01:04]}  Kxe5 {[%clk 0:02:00]} 31. Re1+ {[%clk 0:01:02]}  Kd4 {[%clk 0:02:00]} 32. Nf4 {[%clk 0:01:01]}  Bd7 {[%clk 0:01:58]} 33. Be2 {[%clk 0:00:53]}  Bc6 {[%clk 0:01:57]} 34. Bf3 {[%clk 0:00:51]}  a4 {[%clk 0:01:47]} 35. Kf2 {[%clk 0:00:44]}  a3 {[%clk 0:01:47]} 36. Ne6+ {[%clk 0:00:43]}  Kd3 {[%clk 0:01:43]} 37. Re3+ {[%clk 0:00:40]}  Kc2 {[%clk 0:01:42]} 38. Rxa3 {[%clk 0:00:40]}  Rxa3 {[%clk 0:01:41]} 39. bxa3 {[%clk 0:00:40]}  Kb2 {[%clk 0:01:41]} 40. Nd4 {[%clk 0:00:38]}  Bd7 {[%clk 0:01:41]} 41. Bxd5 {[%clk 0:00:38]}  Kxa3 {[%clk 0:01:41]} 42. Bb3 {[%clk 0:00:38]}  Kb4 {[%clk 0:01:41]} 43. Ke3 {[%clk 0:00:38]}  Kc5 {[%clk 0:01:41]} 44. Ne2 {[%clk 0:00:38]}  Kd6 {[%clk 0:01:40]} 45. Nf4 {[%clk 0:00:38]}  Ke5 {[%clk 0:01:41]} 46. Nd3+ {[%clk 0:00:39]}  Kf5 {[%clk 0:01:39]} 47. Nf2 {[%clk 0:00:40]}  Bc6 {[%clk 0:01:39]} 48. g4+ {[%clk 0:00:40]}  Ke5 {[%clk 0:01:40]} 49. Nd3+ {[%clk 0:00:39]}  Kf6 {[%clk 0:01:40]} 50. Kf4 {[%clk 0:00:40]}  Bb5 {[%clk 0:01:35]} 51. Ne5 {[%clk 0:00:40]}  Be8 {[%clk 0:01:34]} 52. g5+ {[%clk 0:00:41]}  Ke7 {[%clk 0:01:33]} 53. Nf3 {[%clk 0:00:41]}  Bh5 {[%clk 0:01:33]} 54. Nh4 {[%clk 0:00:42]}  Kd6 {[%clk 0:01:31]} 55. Nf5+ {[%clk 0:00:43]}  Kd7 {[%clk 0:01:30]} 56. Ke5 {[%clk 0:00:43]}  Ke8 {[%clk 0:01:28]} 57. Kf6 {[%clk 0:00:44]}  Kf8 {[%clk 0:01:27]} 58. Ne7 {[%clk 0:00:45]}  Ke8 {[%clk 0:01:27]} 59. g6 {[%clk 0:00:45]}  Bxg6 {[%clk 0:01:27]} 60. Nxg6 {[%clk 0:00:46]}  Kd7 {[%clk 0:01:27]} 61. Ke5 {[%clk 0:00:46]} 1-0


[Site "https://www.chess.com"]

[Event "Titled Tuesday Blitz April 25 Early 2023"]
[White "Deepan Chakkravarthy J."]
[Black "Deac, Bogdan-Daniel"]
[WhiteFideId "5011132"]
[BlackFideId "1226380"]
[WhiteElo "2367"]
[BlackElo "2649"]
[Result "0-1"]
[Round "03"]
[TimeControl "180+2"]
[Date "2023.04.25"]
[WhiteClock "0:01:36"]
[BlackClock "0:01:05"]

1. e4 {[%clk 0:02:59]}  c6 {[%clk 0:03:00]} 2. d3 {[%clk 0:02:58]}  d5 {[%clk 0:03:01]} 3. Nd2 {[%clk 0:02:59]}  Qc7 {[%clk 0:03:00]} 4. Ngf3 {[%clk 0:02:58]}  Bg4 {[%clk 0:03:01]} 5. Be2 {[%clk 0:02:58]}  e6 {[%clk 0:03:01]} 6. O-O {[%clk 0:02:58]}  Nd7 {[%clk 0:03:01]} 7. h3 {[%clk 0:02:59]}  Bh5 {[%clk 0:03:00]} 8. c3 {[%clk 0:02:59]}  Ngf6 {[%clk 0:02:59]} 9. b4 {[%clk 0:02:57]}  Bd6 {[%clk 0:02:50]} 10. a4 {[%clk 0:02:54]}  Bg6 {[%clk 0:02:45]} 11. Qc2 {[%clk 0:02:44]}  a5 {[%clk 0:02:30]} 12. Rb1 {[%clk 0:02:39]}  axb4 {[%clk 0:02:09]} 13. cxb4 {[%clk 0:02:38]}  O-O {[%clk 0:02:10]} 14. Nh4 {[%clk 0:02:33]}  Rfc8 {[%clk 0:01:58]} 15. Nxg6 {[%clk 0:02:33]}  hxg6 {[%clk 0:01:57]} 16. Bb2 {[%clk 0:02:12]}  Bxb4 {[%clk 0:01:33]} 17. Bxf6 {[%clk 0:02:04]}  Bxd2 {[%clk 0:01:33]} 18. Bxg7 {[%clk 0:01:56]}  Kxg7 {[%clk 0:01:33]} 19. Qxd2 {[%clk 0:01:56]}  dxe4 {[%clk 0:01:33]} 20. dxe4 {[%clk 0:01:52]}  Rxa4 {[%clk 0:01:31]} 21. Qb2+ {[%clk 0:01:52]}  Nf6 {[%clk 0:01:12]} 22. f3 {[%clk 0:01:43]}  b5 {[%clk 0:01:05]} 23. Rfc1 {[%clk 0:01:42]}  Qa7+ {[%clk 0:01:05]} 24. Kh1 {[%clk 0:01:36]}  Ra2 {[%clk 0:01:05]} 0-1


[Site "https://www.chess.com"]

[Event "Titled Tuesday Blitz April 25 Early 2023"]
[White "Tactrics"]
[Black "Bilych, Olexiy"]
[BlackFideId "14156504"]
[WhiteElo "2966"]
[BlackElo "2320"]
[Result "1/2-1/2"]
[Round "03"]
[TimeControl "180+2"]
[Date "2023.04.25"]
[WhiteClock "0:00:06"]
[BlackClock "0:00:19"]

1. e4 {[%clk 0:03:00]}  c5 {[%clk 0:02:59]} 2. Nf3 {[%clk 0:03:00]}  d6 {[%clk 0:02:59]} 3. Nc3 {[%clk 0:03:00]}  Nf6 {[%clk 0:02:59]} 4. d4 {[%clk 0:03:01]}  cxd4 {[%clk 0:02:59]} 5. Qxd4 {[%clk 0:03:01]}  e5 {[%clk 0:02:46]} 6. Qd3 {[%clk 0:02:51]}  h6 {[%clk 0:02:45]} 7. Nd5 {[%clk 0:02:45]}  Nxd5 {[%clk 0:02:37]} 8. Qxd5 {[%clk 0:02:46]}  Be7 {[%clk 0:02:34]} 9. Be2 {[%clk 0:02:41]}  O-O {[%clk 0:02:33]} 10. O-O {[%clk 0:02:41]}  Qc7 {[%clk 0:02:33]} 11. c4 {[%clk 0:02:35]}  Be6 {[%clk 0:02:11]} 12. Qd3 {[%clk 0:02:35]}  Nc6 {[%clk 0:02:10]} 13. Be3 {[%clk 0:02:31]}  Rac8 {[%clk 0:02:09]} 14. Rac1 {[%clk 0:02:27]}  Rfd8 {[%clk 0:02:04]} 15. Rfd1 {[%clk 0:02:26]}  Qa5 {[%clk 0:01:45]} 16. a3 {[%clk 0:02:22]}  Bg4 {[%clk 0:01:30]} 17. Nd2 {[%clk 0:02:18]}  Bxe2 {[%clk 0:01:23]} 18. Qxe2 {[%clk 0:02:18]}  Bg5 {[%clk 0:01:23]} 19. Nf3 {[%clk 0:01:57]}  Bxe3 {[%clk 0:01:19]} 20. Qxe3 {[%clk 0:01:57]}  Qc7 {[%clk 0:01:13]} 21. Rc3 {[%clk 0:01:53]}  a5 {[%clk 0:01:11]} 22. b3 {[%clk 0:01:52]}  Nb8 {[%clk 0:00:58]} 23. Rcd3 {[%clk 0:01:47]}  Na6 {[%clk 0:00:58]} 24. Rd5 {[%clk 0:01:37]}  Nc5 {[%clk 0:00:57]} 25. h3 {[%clk 0:01:31]}  Ne6 {[%clk 0:00:51]} 26. g3 {[%clk 0:01:21]}  Ra8 {[%clk 0:00:30]} 27. Rc1 {[%clk 0:01:03]}  Ra6 {[%clk 0:00:29]} 28. Kg2 {[%clk 0:01:01]}  Nc5 {[%clk 0:00:26]} 29. Nh4 {[%clk 0:00:59]}  Rb6 {[%clk 0:00:23]} 30. Rc3 {[%clk 0:00:55]}  Ne6 {[%clk 0:00:19]} 31. Nf5 {[%clk 0:00:54]}  h5 {[%clk 0:00:18]} 32. Rxa5 {[%clk 0:00:34]}  g6 {[%clk 0:00:18]} 33. Nh4 {[%clk 0:00:33]}  Rxb3 {[%clk 0:00:14]} 34. Rxb3 {[%clk 0:00:29]}  Qxa5 {[%clk 0:00:15]} 35. Rxb7 {[%clk 0:00:29]}  Nc5 {[%clk 0:00:14]} 36. Re7 {[%clk 0:00:20]}  Qa8 {[%clk 0:00:14]} 37. Nxg6 {[%clk 0:00:17]}  Qxe4+ {[%clk 0:00:04]} 38. Qxe4 {[%clk 0:00:10]}  Nxe4 {[%clk 0:00:05]} 39. Nh4 {[%clk 0:00:10]}  Ra8 {[%clk 0:00:05]} 40. Nf5 {[%clk 0:00:03]}  Rxa3 {[%clk 0:00:05]} 41. c5 {[%clk 0:00:04]}  Nxc5 {[%clk 0:00:04]} 42. Nxd6 {[%clk 0:00:04]}  Nd3 {[%clk 0:00:04]} 43. Rxf7 {[%clk 0:00:02]}  Ra6 {[%clk 0:00:03]} 44. Rf6 {[%clk 0:00:03]}  Kh7 {[%clk 0:00:01]} 45. g4 {[%clk 0:00:02]}  h4 {[%clk 0:00:02]} 46. Kf3 {[%clk 0:00:01]}  Ra2 {[%clk 0:00:02]} 47. Ke4 {[%clk 0:00:02]}  Nxf2+ {[%clk 0:00:01]} 48. Kxe5 {[%clk 0:00:03]}  Nxh3 {[%clk 0:00:02]} 49. Nf5 {[%clk 0:00:03]}  Ra5+ {[%clk 0:00:02]} 50. Ke6 {[%clk 0:00:04]}  Ng5+ {[%clk 0:00:03]} 51. Ke7 {[%clk 0:00:04]}  Ra7+ {[%clk 0:00:04]} 52. Ke8 {[%clk 0:00:04]}  Ra8+ {[%clk 0:00:04]} 53. Ke7 {[%clk 0:00:04]}  Ra7+ {[%clk 0:00:05]} 54. Kd8 {[%clk 0:00:04]}  Ra8+ {[%clk 0:00:05]} 55. Kc7 {[%clk 0:00:05]}  Ra7+ {[%clk 0:00:04]} 56. Kb6 {[%clk 0:00:05]}  Rf7 {[%clk 0:00:04]} 57. Rh6+ {[%clk 0:00:05]}  Kg8 {[%clk 0:00:04]} 58. Rxh4 {[%clk 0:00:05]}  Ne4 {[%clk 0:00:04]} 59. Nh6+ {[%clk 0:00:05]}  Kg7 {[%clk 0:00:04]} 60. Nxf7 {[%clk 0:00:06]}  Kxf7 {[%clk 0:00:05]} 61. Kc6 {[%clk 0:00:06]}  Kg6 {[%clk 0:00:06]} 62. Kd5 {[%clk 0:00:06]}  Nf6+ {[%clk 0:00:06]} 63. Ke6 {[%clk 0:00:04]}  Kg5 {[%clk 0:00:07]} 64. Rh1 {[%clk 0:00:04]}  Nxg4 {[%clk 0:00:08]} 65. Rg1 {[%clk 0:00:04]}  Kf4 {[%clk 0:00:08]} 66. Kd5 {[%clk 0:00:05]}  Kg5 {[%clk 0:00:09]} 67. Ke4 {[%clk 0:00:05]}  Kh5 {[%clk 0:00:07]} 68. Kf5 {[%clk 0:00:05]}  Nh6+ {[%clk 0:00:08]} 69. Kf4 {[%clk 0:00:04]}  Nf7 {[%clk 0:00:07]} 70. Rg7 {[%clk 0:00:04]}  Nh6 {[%clk 0:00:07]} 71. Rh7 {[%clk 0:00:04]}  Kg6 {[%clk 0:00:07]} 72. Rb7 {[%clk 0:00:05]}  Kh5 {[%clk 0:00:07]} 73. Rb6 {[%clk 0:00:05]}  Nf7 {[%clk 0:00:07]} 74. Rf6 {[%clk 0:00:05]}  Nh6 {[%clk 0:00:07]} 75. Rb6 {[%clk 0:00:04]}  Nf7 {[%clk 0:00:07]} 76. Rb2 {[%clk 0:00:05]}  Nh6 {[%clk 0:00:07]} 77. Ke5 {[%clk 0:00:06]}  Kg6 {[%clk 0:00:08]} 78. Rb6+ {[%clk 0:00:05]}  Kg5 {[%clk 0:00:09]} 79. Rb1 {[%clk 0:00:06]}  Ng4+ {[%clk 0:00:09]} 80. Ke4 {[%clk 0:00:06]}  Nf2+ {[%clk 0:00:09]} 81. Kf3 {[%clk 0:00:06]}  Nd3 {[%clk 0:00:09]} 82. Rb5+ {[%clk 0:00:06]}  Kf6 {[%clk 0:00:09]} 83. Ke4 {[%clk 0:00:05]}  Nf2+ {[%clk 0:00:09]} 84. Kf4 {[%clk 0:00:05]}  Nd3+ {[%clk 0:00:09]} 85. Ke4 {[%clk 0:00:03]}  Nf2+ {[%clk 0:00:10]} 86. Kf3 {[%clk 0:00:03]}  Nd3 {[%clk 0:00:10]} 87. Rd5 {[%clk 0:00:02]}  Ne5+ {[%clk 0:00:11]} 88. Ke4 {[%clk 0:00:03]}  Ng6 {[%clk 0:00:11]} 89. Rd6+ {[%clk 0:00:03]}  Kg5 {[%clk 0:00:12]} 90. Ra6 {[%clk 0:00:04]}  Nh4 {[%clk 0:00:12]} 91. Ra5+ {[%clk 0:00:04]}  Kg4 {[%clk 0:00:13]} 92. Ra8 {[%clk 0:00:04]}  Kg5 {[%clk 0:00:13]} 93. Rg8+ {[%clk 0:00:04]}  Ng6 {[%clk 0:00:14]} 94. Ra8 {[%clk 0:00:03]}  Kf6 {[%clk 0:00:14]} 95. Ra6+ {[%clk 0:00:04]}  Kg5 {[%clk 0:00:15]} 96. Ra5+ {[%clk 0:00:04]}  Kg4 {[%clk 0:00:15]} 97. Rb5 {[%clk 0:00:05]}  Nh4 {[%clk 0:00:16]} 98. Rb1 {[%clk 0:00:05]}  Kg5 {[%clk 0:00:15]} 99. Rg1+ {[%clk 0:00:04]}  Kf6 {[%clk 0:00:16]} 100. Rf1+ {[%clk 0:00:03]}  Kg5 {[%clk 0:00:16]} 101. Ke5 {[%clk 0:00:03]}  Ng6+ {[%clk 0:00:16]} 102. Kd6 {[%clk 0:00:03]}  Nf4 {[%clk 0:00:16]} 103. Ke5 {[%clk 0:00:04]}  Ng6+ {[%clk 0:00:17]} 104. Ke4 {[%clk 0:00:04]}  Nh4 {[%clk 0:00:16]} 105. Rg1+ {[%clk 0:00:05]}  Kf6 {[%clk 0:00:16]} 106. Kf4 {[%clk 0:00:03]}  Ng6+ {[%clk 0:00:17]} 107. Kg4 {[%clk 0:00:04]}  Ne5+ {[%clk 0:00:17]} 108. Kh5 {[%clk 0:00:04]}  Kf5 {[%clk 0:00:16]} 109. Rf1+ {[%clk 0:00:05]}  Ke4 {[%clk 0:00:17]} 110. Kg5 {[%clk 0:00:05]}  Nf3+ {[%clk 0:00:17]} 111. Kg4 {[%clk 0:00:06]}  Nh2+ {[%clk 0:00:18]} 112. Kg3 {[%clk 0:00:06]}  Nxf1+ {[%clk 0:00:19]} 1/2-1/2


[Site "https://www.chess.com"]

[Event "Titled Tuesday Blitz April 25 Early 2023"]
[White "Hakobyan, Aram"]
[Black "Karthik Rajaa"]
[WhiteFideId "13306677"]
[BlackFideId "25035215"]
[WhiteElo "2584"]
[BlackElo "2215"]
[Result "1-0"]
[Round "03"]
[TimeControl "180+2"]
[Date "2023.04.25"]
[WhiteClock "0:00:39"]
[BlackClock "0:00:04"]

1. d4 {[%clk 0:03:00]}  Nf6 {[%clk 0:02:59]} 2. c4 {[%clk 0:02:59]}  g6 {[%clk 0:03:00]} 3. Nc3 {[%clk 0:02:51]}  Bg7 {[%clk 0:02:59]} 4. Nf3 {[%clk 0:02:51]}  O-O {[%clk 0:02:59]} 5. Bg5 {[%clk 0:02:50]}  d6 {[%clk 0:02:57]} 6. e3 {[%clk 0:02:50]}  h6 {[%clk 0:02:56]} 7. Bh4 {[%clk 0:02:50]}  Nbd7 {[%clk 0:02:56]} 8. Be2 {[%clk 0:02:50]}  Qe8 {[%clk 0:02:47]} 9. O-O {[%clk 0:02:50]}  e5 {[%clk 0:02:42]} 10. Rc1 {[%clk 0:02:46]}  a6 {[%clk 0:02:24]} 11. b4 {[%clk 0:02:38]}  g5 {[%clk 0:02:23]} 12. Bg3 {[%clk 0:02:37]}  Nh5 {[%clk 0:02:23]} 13. c5 {[%clk 0:02:27]}  Nxg3 {[%clk 0:02:20]} 14. hxg3 {[%clk 0:02:27]}  dxc5 {[%clk 0:01:58]} 15. bxc5 {[%clk 0:02:23]}  exd4 {[%clk 0:01:28]} 16. Nxd4 {[%clk 0:02:18]}  Ne5 {[%clk 0:01:24]} 17. Qc2 {[%clk 0:02:11]}  b6 {[%clk 0:01:06]} 18. cxb6 {[%clk 0:02:08]}  cxb6 {[%clk 0:01:06]} 19. Nd5 {[%clk 0:02:08]}  Qd8 {[%clk 0:00:59]} 20. Nc7 {[%clk 0:02:05]}  Ra7 {[%clk 0:00:50]} 21. Rfd1 {[%clk 0:02:03]}  Bd7 {[%clk 0:00:48]} 22. Nd5 {[%clk 0:01:36]}  b5 {[%clk 0:00:32]} 23. Nf5 {[%clk 0:01:28]}  Bxf5 {[%clk 0:00:32]} 24. Qxf5 {[%clk 0:01:27]}  Rd7 {[%clk 0:00:28]} 25. e4 {[%clk 0:01:24]}  Rd6 {[%clk 0:00:20]} 26. f4 {[%clk 0:01:18]}  Ng6 {[%clk 0:00:19]} 27. Bf3 {[%clk 0:01:09]}  gxf4 {[%clk 0:00:17]} 28. gxf4 {[%clk 0:01:09]}  Nh4 {[%clk 0:00:17]} 29. Qh3 {[%clk 0:01:09]}  Nxf3+ {[%clk 0:00:16]} 30. Qxf3 {[%clk 0:01:10]}  Qh4 {[%clk 0:00:15]} 31. e5 {[%clk 0:01:08]}  Rdd8 {[%clk 0:00:11]} 32. Ne3 {[%clk 0:01:07]}  Rxd1+ {[%clk 0:00:10]} 33. Rxd1 {[%clk 0:01:08]}  Qe7 {[%clk 0:00:10]} 34. Nf5 {[%clk 0:01:06]}  Qc5+ {[%clk 0:00:10]} 35. Kh2 {[%clk 0:01:07]}  Kh8 {[%clk 0:00:11]} 36. Qg4 {[%clk 0:01:05]}  Rg8 {[%clk 0:00:10]} 37. Rd8 {[%clk 0:01:02]}  Bf8 {[%clk 0:00:05]} 38. Qh4 {[%clk 0:01:00]}  Qc6 {[%clk 0:00:05]} 39. Qh3 {[%clk 0:00:46]}  Qg6 {[%clk 0:00:05]} 40. Nd6 {[%clk 0:00:38]}  Bxd6 {[%clk 0:00:04]} 41. Rxd6 {[%clk 0:00:39]} 1-0


[Site "https://www.chess.com"]

[Event "Titled Tuesday Blitz April 25 Early 2023"]
[White "Abdrlauf, Elham"]
[Black "Javakhadze, Zurab"]
[WhiteFideId "1533533"]
[BlackFideId "13603647"]
[WhiteElo "2469"]
[BlackElo "2381"]
[Result "1-0"]
[Round "03"]
[TimeControl "180+2"]
[Date "2023.04.25"]
[WhiteClock "0:01:28"]
[BlackClock "0:00:15"]

1. e4 {[%clk 0:02:58]}  e5 {[%clk 0:03:00]} 2. Nc3 {[%clk 0:02:58]}  Nf6 {[%clk 0:02:59]} 3. d4 {[%clk 0:02:58]}  exd4 {[%clk 0:02:59]} 4. Qxd4 {[%clk 0:02:59]}  Nc6 {[%clk 0:02:57]} 5. Qd3 {[%clk 0:02:59]}  Bc5 {[%clk 0:02:48]} 6. Be3 {[%clk 0:02:58]}  Bxe3 {[%clk 0:02:27]} 7. Qxe3 {[%clk 0:02:59]}  O-O {[%clk 0:02:28]} 8. O-O-O {[%clk 0:02:59]}  Re8 {[%clk 0:02:28]} 9. f4 {[%clk 0:02:56]}  d6 {[%clk 0:02:24]} 10. Nf3 {[%clk 0:02:56]}  Bf5 {[%clk 0:02:09]} 11. Bd3 {[%clk 0:02:52]}  Nb4 {[%clk 0:01:45]} 12. Rhe1 {[%clk 0:02:44]}  Nxd3+ {[%clk 0:01:34]} 13. Qxd3 {[%clk 0:02:45]}  Be6 {[%clk 0:01:28]} 14. h3 {[%clk 0:02:43]}  Nd7 {[%clk 0:01:21]} 15. g4 {[%clk 0:02:40]}  Nc5 {[%clk 0:01:21]} 16. Qd2 {[%clk 0:02:41]}  b5 {[%clk 0:01:16]} 17. f5 {[%clk 0:02:30]}  Bd7 {[%clk 0:01:09]} 18. Qf4 {[%clk 0:02:25]}  b4 {[%clk 0:00:55]} 19. Nd5 {[%clk 0:02:25]}  Bc6 {[%clk 0:00:56]} 20. g5 {[%clk 0:02:19]}  Qd7 {[%clk 0:00:39]} 21. Nf6+ {[%clk 0:01:40]}  gxf6 {[%clk 0:00:39]} 22. gxf6 {[%clk 0:01:41]}  Kh8 {[%clk 0:00:34]} 23. Ng5 {[%clk 0:01:41]}  Nxe4 {[%clk 0:00:19]} 24. Nxh7 {[%clk 0:01:33]}  Re5 {[%clk 0:00:15]} 25. Qh6 {[%clk 0:01:28]}  Qxf5 {[%clk 0:00:15]} 26. Qg7# {[%clk 0:01:28]} 1-0


[Site "https://www.chess.com"]

[Event "Titled Tuesday Blitz April 25 Early 2023"]
[White "Chigaev, Maksim"]
[Black "Horvath, Dominik"]
[WhiteFideId "4108116"]
[BlackFideId "1642561"]
[WhiteElo "2547"]
[BlackElo "2407"]
[Result "1-0"]
[Round "03"]
[TimeControl "180+2"]
[Date "2023.04.25"]
[WhiteClock "0:01:39"]
[BlackClock "0:00:14"]

1. d4 {[%clk 0:03:00]}  Nf6 {[%clk 0:02:54]} 2. Bg5 {[%clk 0:03:00]}  d5 {[%clk 0:02:53]} 3. e3 {[%clk 0:03:00]}  Nbd7 {[%clk 0:02:52]} 4. Nf3 {[%clk 0:02:59]}  h6 {[%clk 0:02:52]} 5. Bh4 {[%clk 0:02:57]}  g5 {[%clk 0:02:53]} 6. Bg3 {[%clk 0:02:58]}  Nh5 {[%clk 0:02:54]} 7. c4 {[%clk 0:02:53]}  e6 {[%clk 0:02:48]} 8. Nc3 {[%clk 0:02:52]}  Nxg3 {[%clk 0:02:40]} 9. hxg3 {[%clk 0:02:52]}  c6 {[%clk 0:02:31]} 10. Qc2 {[%clk 0:02:52]}  Bg7 {[%clk 0:02:31]} 11. O-O-O {[%clk 0:02:52]}  b6 {[%clk 0:02:30]} 12. Kb1 {[%clk 0:02:52]}  Bb7 {[%clk 0:02:30]} 13. e4 {[%clk 0:02:43]}  dxc4 {[%clk 0:02:24]} 14. Bxc4 {[%clk 0:02:36]}  Qe7 {[%clk 0:02:24]} 15. e5 {[%clk 0:02:34]}  c5 {[%clk 0:02:24]} 16. Ne4 {[%clk 0:02:25]}  Bxe4 {[%clk 0:02:10]} 17. Qxe4 {[%clk 0:02:26]}  Rd8 {[%clk 0:02:06]} 18. d5 {[%clk 0:02:25]}  exd5 {[%clk 0:02:00]} 19. Rxd5 {[%clk 0:02:24]}  O-O {[%clk 0:01:38]} 20. Rd6 {[%clk 0:01:47]}  Nxe5 {[%clk 0:01:05]} 21. Rdxh6 {[%clk 0:01:44]}  Rfe8 {[%clk 0:00:14]} 22. Rh8+ {[%clk 0:01:39]} 1-0


[Site "https://www.chess.com"]

[Event "Titled Tuesday Blitz April 25 Early 2023"]
[White "Nevednichy, Vladislav"]
[Black "Esipenko, Andrey"]
[WhiteFideId "1205730"]
[BlackFideId "24175439"]
[WhiteElo "2370"]
[BlackElo "2615"]
[Result "0-1"]
[Round "03"]
[TimeControl "180+2"]
[Date "2023.04.25"]
[WhiteClock "0:01:40"]
[BlackClock "0:01:00"]

1. d4 {[%clk 0:03:00]}  Nf6 {[%clk 0:02:53]} 2. Bg5 {[%clk 0:02:56]}  d5 {[%clk 0:02:51]} 3. Bxf6 {[%clk 0:02:54]}  gxf6 {[%clk 0:02:50]} 4. e3 {[%clk 0:02:55]}  c5 {[%clk 0:02:49]} 5. c3 {[%clk 0:02:55]}  e6 {[%clk 0:02:47]} 6. Nd2 {[%clk 0:02:54]}  Nc6 {[%clk 0:02:46]} 7. Ngf3 {[%clk 0:02:52]}  Bd7 {[%clk 0:02:41]} 8. Be2 {[%clk 0:02:50]}  f5 {[%clk 0:02:38]} 9. a4 {[%clk 0:02:46]}  a6 {[%clk 0:02:36]} 10. O-O {[%clk 0:02:44]}  Rg8 {[%clk 0:02:36]} 11. g3 {[%clk 0:02:40]}  h5 {[%clk 0:02:28]} 12. Kh1 {[%clk 0:02:39]}  Qf6 {[%clk 0:02:23]} 13. Nh4 {[%clk 0:02:35]}  Be7 {[%clk 0:02:20]} 14. f4 {[%clk 0:02:25]}  Qg7 {[%clk 0:02:14]} 15. Ndf3 {[%clk 0:02:23]}  Rc8 {[%clk 0:02:08]} 16. Rg1 {[%clk 0:02:23]}  Qh8 {[%clk 0:01:57]} 17. Qd2 {[%clk 0:02:12]}  Na5 {[%clk 0:01:52]} 18. Qc2 {[%clk 0:02:08]}  Bf6 {[%clk 0:01:44]} 19. Rad1 {[%clk 0:02:06]}  Ke7 {[%clk 0:01:41]} 20. Qb1 {[%clk 0:02:02]}  Bxa4 {[%clk 0:01:31]} 21. Rde1 {[%clk 0:02:02]}  Bd7 {[%clk 0:01:21]} 22. dxc5 {[%clk 0:02:01]}  Nb3 {[%clk 0:01:20]} 23. Nd4 {[%clk 0:01:51]}  Nxc5 {[%clk 0:01:18]} 24. Qd1 {[%clk 0:01:48]}  Bxh4 {[%clk 0:01:13]} 25. gxh4 {[%clk 0:01:47]}  Ne4 {[%clk 0:01:13]} 26. Ref1 {[%clk 0:01:42]}  Rxg1+ {[%clk 0:01:09]} 27. Kxg1 {[%clk 0:01:43]}  Qg7+ {[%clk 0:01:09]} 28. Kh1 {[%clk 0:01:42]}  Rg8 {[%clk 0:01:10]} 29. Bf3 {[%clk 0:01:41]}  Qg1+ {[%clk 0:01:10]} 30. Rxg1 {[%clk 0:01:40]}  Nf2# {[%clk 0:01:00]} 0-1


[Site "https://www.chess.com"]